bitfinex/quotes_ETHUSD_20250726
["timestamp","ask_amount","ask_price","bid_price","bid_amount"]
[1753546390912,0.001,3729.5,3729.3,5.77346837]
[1753546391208,0.001,3729.5,3729.3,7.04807643]
[1753546393798,0.001,3729.5,3729.3,7.18247643]
[1753546396781,0.001,3729.5,3729.3,11.58558898]
[1753546398613,0.001,3729.5,3729.4,2.68139647]
[1753546398996,0.001,3729.5,3729.4,3.60229647]
[1753546399196,0.001,3729.5,3729.4,5.37990623]
[1753546399913,0.001,3729.5,3729.4,6.20270623]
[1753546400707,0.001,3729.8,3729.6,2.68125268]
[1753546400908,0.001,3729.8,3729.6,5.43465268]
[1753546401112,0.001,3729.8,3729.6,8.31229747]
[1753546403120,0.001,3729.8,3729.6,7.85169747]
[1753546403621,0.001,3729.8,3729.6,7.39139747]
[1753546403988,0.001,3729.8,3729.6,7.85169747]
[1753546404190,0.001,3729.8,3729.6,5.23269747]
[1753546404527,0.001,3729.8,3729.6,7.85069747]
[1753546404941,0.001,3729.8,3729.6,7.38939747]
[1753546405645,0.001,3729.8,3729.6,4.77239747]
[1753546405943,0.001,3729.8,3729.6,5.43265268]
[1753546406421,0.001,3729.8,3729.6,2.81565268]
[1753546406606,0.001,3729.8,3729.6,5.43265268]
[1753546407150,0.001,3729.8,3729.6,0.1344]
[1753546407151,0.7522,3729.7,3729.6,0.1344]
[1753546407313,0.7522,3729.7,3729.6,5.43265268]
[1753546408047,0.7522,3729.7,3729.6,2.81565268]
[1753546408215,0.7522,3729.7,3729.6,5.43265268]
[1753546411891,0.001,3729.7,3729.6,5.43265268]
[1753546412054,0.001,3729.7,3729.6,5.89295268]
[1753546412259,0.001,3729.7,3729.6,7.25704615]
[1753546415768,0.001,3729.7,3729.6,6.79644615]
[1753546416146,0.001,3729.7,3729.6,7.25704615]
[1753546417544,0.001,3729.7,3729.6,5.89295268]
[1753546418488,0.001,3729.7,3729.6,6.35355268]
[1753546418870,0.001,3729.7,3729.6,5.43265268]
[1753546419079,0.001,3729.7,3729.6,5.42865268]
[1753546420361,0.001,3729.7,3729.6,5.88895268]
[1753546420898,0.001,3729.7,3729.6,6.34955268]
[1753546421088,0.001,3729.7,3729.6,7.25264615]
[1753546421776,0.001,3729.7,3729.6,7.25164615]
[1753546424701,0.001,3729.8,3729.7,2.68118079]
[1753546424921,0.001,3730.2,3730.1,2.68089327]
[1753546425085,0.001,3730.2,3730.1,5.82708119]
[1753546425272,1e-08,3730.4,3730.2,2.6808214]
[1753546425620,1e-08,3730.4,3730.3,9.82826208]
[1753546425770,1e-08,3730.4,3730.3,10.74376208]
[1753546426401,1e-08,3730.4,3730.3,11.52716208]
[1753546426607,1e-08,3730.4,3730.3,13.00157922]
[1753546427806,1e-08,3730.4,3730.3,8.59846667]
[1753546429091,1e-08,3730.4,3730.3,6.59846667]
[1753546429781,1e-08,3730.4,3730.3,8.59646667]
[1753546433723,1e-08,3730.4,3730.3,5.98846667]
[1753546434034,1e-08,3730.4,3730.3,8.59546667]
[1753546435443,1e-08,3730.4,3730.3,5.98846667]
[1753546435651,1e-08,3730.4,3730.3,8.59446667]
[1753546435966,1e-08,3730.4,3730.3,12.99757922]
[1753546441168,1e-08,3730.4,3730.3,12.99557922]
[1753546441693,1e-08,3730.6,3730.5,2.68060581]
[1753546441975,1e-08,3730.6,3730.5,7.12030645]
[1753546442142,1e-08,3730.6,3730.5,7.25470645]
[1753546442341,1e-08,3730.6,3730.5,8.17020645]
[1753546443942,1e-08,3730.6,3730.5,5.56620645]
[1753546444302,1e-08,3730.6,3730.5,8.16820645]
[1753546445185,1e-08,3730.6,3730.5,5.56620645]
[1753546445388,1e-08,3730.6,3730.5,8.16820645]
[1753546455905,1e-08,3730.6,3730.5,7.11430645]
[1753546456112,1e-08,3730.6,3730.5,5.27860581]
[1753546456423,1e-08,3730.6,3730.5,5.27760581]
[1753546460206,1e-08,3730.6,3730.5,2.68060581]
[1753546460395,1e-08,3730.6,3730.5,5.27760581]
[1753546463013,1e-08,3730.6,3730.5,2.68060581]
[1753546463325,1e-08,3730.6,3730.5,5.27560581]
[1753546463780,0.00200001,3730.6,3730.5,5.27560581]
[1753546464509,0.00200001,3730.6,3729.9,0.9203]
[1753546464510,0.80630001,3730.6,3729.6,3.864]
[1753546464677,0.002,3730.5,3730.2,2.68076844]
[1753546464871,0.7957,3730.4,3730.2,5.27476844]
[1753546465073,0.7957,3730.4,3730.3,2.68074953]
[1753546466686,0.7977,3730.4,3730.2,2.594]
[1753546466891,0.002,3730.3,3730.2,5.27481513]
[1753546467213,0.002,3730.3,3729.9,2.81543527]
[1753546467214,0.7957,3730.2,3730.1,2.68087585]
[1753546467411,0.7957,3730.2,3730.1,5.27487585]
[1753546467614,0.7977,3730.2,3730.1,5.27487585]
[1753546467976,0.7977,3730.2,3730.1,2.593]
[1753546469330,0.7977,3730.2,3730.0,5.27394359]
[1753546469732,0.1344,3730.1,3730.0,5.27394359]
[1753546469882,0.98351116,3730.1,3729.6,0.002]
[1753546470081,0.95,3729.9,3729.8,2.68110568]
[1753546470382,0.952,3729.9,3729.8,2.68110568]
[1753546471003,0.952,3729.9,3729.6,0.002]
[1753546471004,0.8156,3729.7,3729.6,0.002]
[1753546471222,1.13351475,3729.7,3729.6,0.002]
[1753546471582,1.13551475,3729.7,3729.6,0.002]
[1753546473624,1.68551475,3729.7,3729.6,0.002]
[1753546474393,1.652,3729.7,3729.6,0.002]
[1753546474587,1.65,3729.7,3729.6,0.002]
[1753546475124,1.652,3729.7,3729.6,0.002]
[1753546476130,1.65,3729.7,3729.6,0.002]
[1753546477495,1.652,3729.7,3729.6,0.002]
[1753546478309,1.65,3729.7,3729.6,0.002]
[1753546482792,1.65,3729.7,3729.6,2.68325268]
[1753546483798,0.1344,3729.7,3729.6,3.62975268]
[1753546484723,0.7796,3730.1,3730.0,2.68096514]
[1753546484950,0.7503,3730.5,3730.1,2.68089327]
[1753546485125,0.1344,3730.1,3730.0,2.68096514]
[1753546485325,1e-08,3730.6,3729.8,2.7214]
[1753546485656,1e-08,3730.6,3730.5,2.68060581]
[1753546486250,1e-08,3730.6,3730.5,3.62710581]
[1753546489244,1e-08,3730.6,3730.5,0.9465]
[1753546489449,1e-08,3730.6,3730.2,0.6118]
[1753546489654,0.1344,3730.5,3730.2,0.4774]
[1753546489963,0.55,3730.4,3730.2,0.4774]
[1753546490126,0.9561,3730.3,3730.0,3.15005413]
[1753546490328,0.9561,3730.3,3730.1,0.4774]
[1753546490862,0.9561,3730.3,3730.1,3.15827377]
[1753546491085,0.9561,3730.3,3730.2,2.6808214]
[1753546491276,0.9561,3730.3,3730.2,3.1582214]
[1753546491570,0.9561,3730.3,3730.2,3.6273214]
[1753546491929,0.9561,3730.3,3730.2,0.9465]
[1753546492131,0.9561,3730.3,3730.2,3.6273214]
[1753546492779,0.9561,3730.3,3730.2,0.9465]
[1753546493059,0.9561,3730.3,3730.2,3.6273214]
[1753546496632,0.9561,3730.3,3730.2,0.9465]
[1753546496962,0.9561,3730.3,3730.2,0.4774]
[1753546498331,0.55,3730.2,3729.7,5.39751045]
[1753546498550,0.03351116,3730.1,3729.9,0.4774]
[1753546498750,0.03351116,3730.1,3729.7,3.15025856]
[1753546498751,0.16791116,3730.1,3729.7,3.15025856]
[1753546498942,0.1344,3729.9,3729.8,0.4774]
[1753546500167,0.1344,3729.9,3729.8,3.1585089]
[1753546500363,0.1344,3729.9,3729.8,3.6276089]
[1753546501564,0.1344,3729.9,3729.8,0.9465]
[1753546502095,0.1344,3729.9,3729.8,3.6276089]
[1753546504670,0.1344,3729.9,3729.8,3.6296089]
[1753546504862,0.1344,3729.9,3729.8,0.9485]
[1753546505790,0.1344,3729.9,3729.8,3.6296089]
[1753546506610,0.1344,3729.9,3729.8,0.9485]
[1753546506786,0.1344,3729.9,3729.8,0.002]
[1753546506966,0.1344,3729.9,3729.8,0.4794]
[1753546507168,0.1344,3729.9,3729.8,3.6296089]
[1753546507472,0.1344,3729.9,3729.8,0.9485]
[1753546507668,0.1344,3729.9,3729.8,3.6296089]
[1753546508192,0.125634,3729.9,3729.8,3.6296089]
[1753546510533,0.55,3730.2,3729.8,3.6296089]
[1753546510819,0.55,3730.2,3730.1,2.68089327]
[1753546511010,0.6844,3730.2,3730.1,2.68089327]
[1753546511380,0.6844,3730.2,3730.1,3.62739327]
[1753546511584,0.6844,3730.2,3730.1,0.9465]
[1753546513513,0.6844,3730.2,3730.1,0.4774]
[1753546513877,0.6844,3730.2,3729.9,3.14312816]
[1753546514182,0.6844,3730.2,3730.0,0.4621]
[1753546514592,0.6844,3730.2,3729.9,2.68102816]
[1753546514795,0.6844,3730.2,3730.1,2.68089327]
[1753546514995,0.6844,3730.2,3730.0,3.14304434]
[1753546515225,0.6844,3730.2,3730.1,2.68089327]
[1753546515440,0.6844,3730.2,3730.1,3.14299327]
[1753546515991,0.6844,3730.2,3730.1,3.60279327]
[1753546516532,0.6844,3730.2,3730.1,3.14299327]
[1753546516740,0.6844,3730.2,3730.1,0.4621]
[1753546517122,0.6844,3730.2,3730.1,3.14299327]
[1753546518312,0.6844,3730.2,3730.1,3.60279327]
[1753546521222,0.1344,3730.2,3730.1,3.60279327]
[1753546521416,1e-08,3730.6,3730.4,2.68065801]
[1753546521896,0.1344,3730.5,3730.4,2.68065801]
[1753546522098,0.1344,3730.5,3730.4,3.14045801]
[1753546522623,0.1344,3730.5,3730.4,3.60255801]
[1753546524001,1e-08,3730.6,3730.5,2.68060581]
[1753546524192,0.13440001,3730.6,3730.5,3.60250581]
[1753546524497,1e-08,3730.6,3730.5,4.98402219]
[1753546524800,1e-08,3730.6,3730.5,7.55602219]
[1753546525243,1e-08,3730.6,3730.5,7.69042219]
[1753546526328,1e-08,3730.6,3730.5,5.11842219]
[1753546526518,1e-08,3730.6,3730.5,6.17450581]
[1753546528957,1e-08,3730.6,3730.5,6.94050581]
[1753546529108,1e-08,3730.6,3730.5,7.07490581]
[1753546532043,1e-08,3730.6,3730.5,7.07190581]
[1753546532238,1e-08,3730.6,3730.5,8.04717102]
[1753546534033,1e-08,3730.6,3730.5,8.04617102]
[1753546537842,1e-08,3730.6,3730.5,8.04517102]
[1753546545056,1e-08,3731.2,3731.1,3.49477474]
[1753546545254,1e-08,3731.2,3731.1,10.46188729]
[1753546545558,1e-08,3731.2,3731.1,12.86860275]
[1753546546830,1e-08,3731.4,3731.3,0.8146]
[1753546547057,1e-08,3731.4,3731.3,5.37843108]
[1753546547270,1e-08,3731.4,3731.3,6.19303108]
[1753546547479,1e-08,3731.4,3731.3,7.15113108]
[1753546547677,1e-08,3731.4,3731.3,8.70598728]
[1753546548963,1e-08,3731.4,3731.3,5.18388728]
[1753546549132,1e-08,3731.4,3731.3,8.70398728]
[1753546554174,1e-08,3731.4,3731.3,8.70298728]
[1753546555392,1e-08,3731.4,3731.3,5.66808728]
[1753546555569,1e-08,3731.4,3731.3,5.37443108]
[1753546556256,1e-08,3731.4,3731.3,5.85863108]
[1753546557652,1e-08,3731.4,3731.3,5.37443108]
[1753546558077,1e-08,3731.4,3731.3,5.85863108]
[1753546558385,1e-08,3731.4,3731.3,5.37443108]
[1753546558817,1e-08,3731.4,3731.3,2.81443108]
[1753546558969,1e-08,3731.4,3731.3,5.37343108]
[1753546560073,1e-08,3731.4,3731.3,5.85763108]
[1753546560411,1e-08,3731.4,3731.3,7.94401073]
[1753546565039,1e-08,3731.4,3731.3,5.38501073]
[1753546565199,1e-08,3731.4,3731.3,7.94201073]
[1753546565384,1e-08,3731.4,3731.3,6.98391073]
[1753546565579,1e-08,3731.4,3731.3,2.81443108]
[1753546565923,1e-08,3731.4,3731.3,5.37043108]
[1753546566773,1e-08,3731.4,3731.3,6.32853108]
[1753546568103,1e-08,3731.4,3731.3,5.37043108]
[1753546569016,1e-08,3731.4,3731.3,6.32853108]
[1753546569224,1e-08,3731.4,3731.3,7.22940073]
[1753546574731,1e-08,3731.4,3731.3,7.98630073]
[1753546577938,1e-08,3731.4,3731.3,8.18651737]
[1753546582452,0.001,3732.1,3732.0,3.4986284]
[1753546582637,0.001,3732.1,3732.0,6.0496284]
[1753546582840,0.001,3732.1,3732.0,8.43276443]
[1753546583212,0.7669,3732.8,3732.7,2.6790259]
[1753546583413,0.001,3732.9,3732.8,2.67895413]
[1753546584951,0.001,3732.9,3732.8,3.14835413]
[1753546585325,0.001,3732.9,3732.8,3.61525413]
[1753546585912,0.001,3732.9,3732.8,2.67895413]
[1753546586116,0.7979,3733.8,3733.7,2.67830838]
[1753546586419,0.7999,3733.8,3733.7,2.67830838]
[1753546588947,0.7979,3733.8,3733.7,2.67830838]
[1753546590414,1.3354,3734.2,3733.4,2.549]
[1753546590643,1.47731944,3734.2,3733.4,3.0184]
[1753546590848,1.47731944,3734.2,3733.9,2.67810099]
[1753546591020,1.47731944,3734.2,3733.4,3.0184]
[1753546591021,1.47731944,3734.2,3734.0,2.6780806]
[1753546591216,1.47931944,3734.2,3733.9,2.67815998]
[1753546591434,0.08379443,3734.6,3734.0,0.9363]
[1753546591769,0.001,3734.6,3734.5,0.7695]
[1753546592064,0.001,3734.6,3734.5,5.22473463]
[1753546593551,0.78523514,3735.1,3734.9,2.67738479]
[1753546593760,0.78523514,3735.1,3734.6,2.6776513]
[1753546593965,0.78523514,3735.1,3734.7,2.67758442]
[1753546594169,0.78723514,3735.1,3734.8,2.67749471]
[1753546594974,0.78723514,3735.1,3734.9,2.67744663]
[1753546595180,0.78723514,3735.1,3734.7,2.67753512]
[1753546595380,0.78523514,3735.1,3734.6,5.22364748]
[1753546595701,0.55,3734.9,3734.0,2.67808204]
[1753546595844,0.03346899,3734.8,3734.1,2.67802147]
[1753546596042,0.1336,3734.6,3734.1,0.1336]
[1753546596280,0.002,3734.5,3734.1,0.1336]
[1753546596599,0.8053,3734.4,3734.2,2.67794419]
[1753546596750,0.8053,3734.4,3734.1,0.1336]
[1753546596951,0.8053,3734.4,3734.3,2.67787804]
[1753546597180,0.8053,3734.4,3734.2,3.14733227]
[1753546597358,0.8053,3734.4,3734.2,2.67793227]
[1753546598781,0.8053,3734.4,3734.1,0.1336]
[1753546599492,0.8053,3734.4,3734.2,2.67793961]
[1753546599700,0.8072,3735.3,3734.3,0.9363]
[1753546600004,0.1336,3735.1,3734.8,2.6774581]
[1753546600152,0.1336,3735.1,3734.7,0.4694]
[1753546600351,0.8072,3735.0,3734.7,0.4694]
[1753546600553,0.8072,3735.0,3734.6,2.67764832]
[1753546602080,0.03346809,3734.9,3734.5,0.1336]
[1753546602255,0.1336,3734.6,3734.1,2.81162141]
[1753546602453,0.8072,3734.4,3733.8,0.9593]
[1753546602692,0.03347347,3734.3,3733.9,0.1336]
[1753546603188,0.03347347,3734.3,3733.6,2.67837391]
[1753546603189,0.1336,3734.0,3733.6,2.67837391]
[1753546603389,0.8072,3733.9,3733.5,0.1336]
[1753546603557,0.8072,3733.9,3733.5,2.81202718]
[1753546603953,0.8072,3733.9,3733.5,3.30312718]
[1753546604874,0.8072,3733.9,3733.7,2.67830584]
[1753546605144,0.8072,3733.9,3733.7,2.67830838]
[1753546605404,0.8072,3733.9,3733.7,0.4911]
[1753546605552,0.8072,3733.9,3733.7,3.14650708]
[1753546605888,0.8072,3733.9,3733.8,0.4911]
[1753546606090,0.1336,3734.0,3733.8,0.9593]
[1753546606275,0.8072,3734.4,3734.2,2.67794897]
[1753546606586,0.1336,3734.7,3734.3,3.63717804]
[1753546606893,0.1336,3734.7,3734.4,0.9593]
[1753546607269,0.1336,3734.7,3734.5,0.4911]
[1753546607898,0.16706989,3734.7,3734.2,2.67793837]
[1753546608082,0.16706989,3734.7,3734.3,0.4911]
[1753546609658,0.16706989,3734.7,3734.0,0.1336]
[1753546609859,0.16706989,3734.7,3733.8,2.81182878]
[1753546609860,0.1336,3734.3,3733.8,2.81182878]
[1753546610076,0.03347347,3734.3,3733.7,2.67824668]
[1753546610294,0.1336,3734.1,3733.7,2.67824668]
[1753546610683,0.1336,3734.1,3733.8,0.4911]
[1753546611372,0.1336,3734.1,3733.8,3.16933133]
[1753546611895,0.1336,3734.1,3733.7,0.4682]
[1753546611896,0.8038,3733.9,3733.6,0.4911]
[1753546613588,0.8038,3733.9,3733.6,0.4931]
[1753546614392,0.8038,3733.9,3733.6,3.17144022]
[1753546614597,0.8038,3733.9,3733.6,3.63964022]
[1753546615215,0.8038,3733.9,3733.6,3.14854022]
[1753546615517,0.8038,3733.9,3733.7,3.16940785]
[1753546615814,0.8038,3733.9,3733.7,0.4911]
[1753546617194,0.03347795,3733.8,3733.7,0.4911]
[1753546617515,0.03347795,3733.8,3733.6,0.002]
[1753546617701,0.03347795,3733.8,3733.6,0.4931]
[1753546617899,0.03347795,3733.8,3733.6,0.002]
[1753546618414,0.9374,3733.9,3733.6,3.17142834]
[1753546618715,0.9374,3733.9,3733.7,0.4911]
[1753546619715,0.97087706,3733.9,3733.7,0.4911]
[1753546620422,0.1336,3733.9,3733.8,0.9593]
[1753546620582,0.1336,3733.9,3733.6,0.002]
[1753546620788,0.03347795,3733.8,3733.6,0.002]
[1753546621115,0.03347795,3733.8,3733.7,0.4911]
[1753546621320,0.1336,3733.9,3733.7,0.4911]
[1753546621615,0.1336,3733.9,3733.8,0.9593]
[1753546621820,0.1336,3733.9,3733.8,3.63753664]
[1753546622120,0.1336,3733.9,3733.8,0.9593]
[1753546622319,0.1336,3733.9,3733.6,0.002]
[1753546622821,0.03347795,3733.8,3733.6,0.4931]
[1753546623404,0.03347795,3733.8,3733.7,0.4911]
[1753546623805,0.1336,3733.9,3733.7,0.4911]
[1753546624124,0.03347795,3733.8,3733.7,0.4911]
[1753546626319,0.03347795,3733.8,3733.6,2.68037628]
[1753546626621,0.03347795,3733.8,3733.7,0.4911]
[1753546627201,0.1336,3733.9,3733.7,0.9593]
[1753546627524,0.1336,3733.9,3733.8,0.4911]
[1753546628592,0.1336,3733.9,3733.8,3.63753664]
[1753546628792,0.1336,3733.9,3733.8,0.9593]
[1753546629391,0.55,3734.4,3733.8,3.63753664]
[1753546629747,0.1336,3734.0,3733.9,3.63740992]
[1753546630025,3.0,3734.5,3734.4,2.67774205]
[1753546630540,3.0,3734.5,3734.4,3.63704205]
[1753546631436,5.6696,3734.6,3734.4,0.9593]
[1753546631617,2.6696,3734.6,3734.1,3.56708305]
[1753546631795,2.6696,3734.6,3734.5,0.9593]
[1753546632425,2.6696,3734.6,3734.3,2.677858]
[1753546632633,5.6696,3734.6,3734.5,0.4785]
[1753546633035,5.6696,3734.6,3734.5,0.9511]
[1753546635027,5.6696,3734.6,3734.5,3.62883463]
[1753546635261,5.6686,3734.6,3734.5,3.62883463]
[1753546635542,0.001,3735.1,3734.8,2.67747076]
[1753546635712,0.001,3735.1,3734.9,0.9511]
[1753546635713,2.535,3735.0,3734.9,0.9511]
[1753546635903,5.535,3735.0,3734.9,0.9511]
[1753546636105,5.6686,3735.0,3734.9,0.9511]
[1753546636308,0.001,3735.1,3734.9,4.39174785]
[1753546636508,0.001,3735.1,3735.0,4.06765095]
[1753546637316,0.001,3735.1,3735.0,4.85762471]
[1753546637520,0.001,3735.1,3735.0,4.83085095]
[1753546639248,0.001,3735.1,3735.0,4.85762471]
[1753546642011,0.001,3735.1,3735.0,7.36285095]
[1753546643808,0.001,3735.1,3735.0,6.59965095]
[1753546644215,0.001,3735.1,3735.0,4.06765095]
[1753546644415,0.001,3735.1,3735.0,6.59965095]
[1753546644638,0.001,3735.1,3735.0,4.06765095]
[1753546644834,0.001,3735.1,3735.0,6.59965095]
[1753546645443,0.001,3735.1,3734.9,0.1336]
[1753546645750,0.001,3735.1,3734.7,0.1336]
[1753546645939,0.001,3735.1,3735.0,2.67737617]
[1753546646334,0.001,3735.1,3735.0,3.15587617]
[1753546646654,0.001,3735.1,3735.0,3.62847617]
[1753546648764,0.001,3735.1,3735.0,0.4785]
[1753546649063,0.001,3735.1,3734.9,2.67744385]
[1753546649365,0.001,3735.1,3734.9,3.15594385]
[1753546649831,0.001,3735.1,3735.0,2.67737617]
[1753546650953,0.001,3735.1,3734.9,3.1559261]
[1753546651156,0.001,3735.1,3735.0,2.67737617]
[1753546651852,0.001,3735.1,3734.7,2.81112919]
[1753546652060,0.0344663,3735.1,3734.7,2.67752919]
[1753546652432,0.55,3734.9,3734.3,2.67782442]
[1753546652638,0.55,3734.5,3733.9,0.9511]
[1753546652836,0.1336,3734.3,3733.9,3.62925735]
[1753546653158,0.03547437,3734.2,3733.6,0.002]
[1753546653469,0.8929,3734.0,3733.6,0.002]
[1753546653622,0.03347706,3733.9,3733.6,0.002]
[1753546654469,0.03347706,3733.9,3733.6,0.4805]
[1753546655074,0.03347706,3733.9,3733.6,3.15881233]
[1753546655370,0.03347706,3733.9,3733.6,3.15886289]
[1753546655940,0.03347706,3733.9,3733.6,3.63146289]
[1753546656140,0.03347706,3733.9,3733.6,3.15296289]
[1753546656380,0.03347706,3733.9,3733.7,0.4785]
[1753546659176,0.03347706,3733.9,3733.6,2.68037208]
[1753546659473,0.03347706,3733.9,3733.8,0.4785]
[1753546660378,0.03347706,3733.9,3733.8,0.9511]
[1753546661539,0.03347706,3733.9,3733.8,3.62933664]
[1753546661771,0.8929,3734.0,3733.8,3.62933664]
[1753546661944,0.8929,3734.0,3733.9,0.4785]
[1753546664276,0.1336,3734.0,3733.9,0.4785]
[1753546664479,0.1336,3734.0,3733.9,0.9409]
[1753546665978,0.1336,3734.0,3733.9,3.60196492]
[1753546668952,0.1336,3734.0,3733.9,0.9238]
[1753546669984,0.1336,3734.0,3733.8,2.67822665]
[1753546670287,0.1336,3734.0,3733.8,3.13962665]
[1753546670480,0.1336,3734.0,3733.8,2.67822665]
[1753546670789,0.1336,3734.0,3733.9,0.4614]
[1753546671282,0.1336,3734.0,3733.8,0.4624]
[1753546671476,0.1336,3734.0,3733.8,2.67823076]
[1753546671678,0.1336,3734.0,3733.8,3.13963076]
[1753546671857,0.1336,3734.0,3733.8,0.4614]
[1753546672181,0.1336,3734.0,3733.8,0.9238]
[1753546672601,0.1336,3734.0,3733.8,0.4614]
[1753546672764,0.1336,3734.0,3733.6,0.9258]
[1753546672765,0.03347706,3733.9,3733.6,0.9258]
[1753546673089,0.1336,3733.8,3733.6,3.60416408]
[1753546673858,0.1336,3733.8,3733.6,0.4644]
[1753546674195,0.1336,3733.8,3733.7,0.4614]
[1753546674886,0.1336,3733.8,3733.6,2.68036686]
[1753546675262,0.1336,3733.8,3733.6,3.14176686]
[1753546675484,0.1336,3733.8,3733.6,0.002]
[1753546675788,0.1336,3733.8,3733.6,0.4634]
[1753546676159,0.1336,3733.8,3733.6,0.9258]
[1753546676359,0.1336,3733.8,3733.7,0.4614]
[1753546676873,0.1336,3733.8,3733.6,0.002]
[1753546677091,0.1336,3733.8,3733.7,0.9238]
[1753546677289,0.1336,3733.8,3733.7,0.4614]
[1753546678293,0.1336,3733.8,3733.6,0.002]
[1753546678793,0.1336,3733.8,3733.6,0.4634]
[1753546679863,0.1336,3733.8,3733.6,0.9258]
[1753546681097,0.1336,3733.8,3733.7,0.4614]
[1753546683492,0.1336,3733.8,3733.6,0.002]
[1753546685506,0.55,3733.7,3733.6,0.4634]
[1753546685708,0.55,3733.7,3733.6,0.9258]
[1753546686478,0.55,3733.7,3733.6,3.60418011]
[1753546691137,0.55,3733.7,3733.6,0.002]
[1753546691342,0.58347885,3733.7,3733.6,0.002]
[1753546691477,0.73553674,3733.7,3733.6,0.4634]
[1753546691702,0.70205789,3733.7,3733.6,0.4634]
[1753546691939,0.70205789,3733.7,3733.6,0.9258]
[1753546692241,0.55,3733.7,3733.6,0.9258]
[1753546692943,0.55,3733.7,3733.6,3.60418011]
[1753546693340,3.55,3733.7,3733.6,0.9258]
[1753546693508,3.55,3733.7,3733.6,3.60418011]
[1753546694619,0.1336,3733.8,3733.7,2.67830838]
[1753546694914,3.1336,3734.1,3734.0,2.67809319]
[1753546695119,0.1336,3734.1,3734.0,3.57169319]
[1753546695341,2.519,3734.6,3734.0,0.8936]
[1753546695522,0.1336,3734.5,3734.4,2.67780634]
[1753546696131,3.1336,3734.5,3734.4,2.67780634]
[1753546696332,3.1336,3734.5,3734.4,3.57140634]
[1753546698946,3.1336,3734.5,3734.4,0.8936]
[1753546699110,0.55,3735.0,3734.7,2.67756175]
[1753546699311,0.1336,3734.8,3734.7,2.67756175]
[1753546699949,0.1336,3734.8,3734.7,3.57119123]
[1753546700158,2.6516,3735.0,3734.7,0.8936]
[1753546700376,3.2027272,3735.0,3734.7,0.4626]
[1753546700651,0.1336,3734.8,3734.7,0.4626]
[1753546700815,0.16706899,3734.8,3734.7,0.4626]
[1753546701010,0.16706899,3734.8,3734.7,0.8936]
[1753546701756,0.1336,3734.8,3734.7,0.8936]
[1753546702316,0.1336,3734.8,3734.7,3.57119123]
[1753546702621,0.1346,3735.1,3734.9,2.67742976]
[1753546702843,5.6516,3735.1,3735.0,2.67737617]
[1753546703245,5.6516,3735.1,3735.0,3.57097617]
[1753546705466,5.6506,3735.1,3735.0,3.57097617]
[1753546705760,5.6506,3735.1,3735.0,0.8936]
[1753546706129,5.6506,3735.1,3735.0,3.57097617]
[1753546708065,5.6506,3735.1,3735.0,0.8936]
[1753546709118,3.1346,3735.1,3735.0,0.8936]
[1753546709320,5.6496,3735.1,3735.0,0.8936]
[1753546710519,5.6496,3735.1,3735.0,3.57097617]
[1753546710713,3.1346,3735.1,3735.0,3.57097617]
[1753546710919,5.6496,3735.1,3735.0,3.57097617]
[1753546712617,5.6496,3735.1,3735.0,0.8936]
[1753546713771,3.0,3735.0,3734.8,0.431]
[1753546714062,5.68106809,3734.9,3734.8,0.431]
[1753546714278,5.6476,3734.9,3734.7,2.67759022]
[1753546714790,5.6476,3734.9,3734.8,0.4626]
[1753546714971,5.6476,3734.9,3734.8,0.8936]
[1753546716384,3.1336,3734.9,3734.8,0.8936]
[1753546716587,5.6466,3734.9,3734.8,0.8936]
[1753546717573,5.6466,3734.9,3734.8,3.57111954]
[1753546718702,3.1336,3734.9,3734.8,3.57111954]
[1753546718869,5.6466,3734.9,3734.8,3.57111954]
[1753546720351,5.6466,3734.9,3734.8,4.38221954]
[1753546721077,5.6466,3734.9,3734.8,1.7047]
[1753546721494,5.6456,3734.9,3734.8,0.8936]
[1753546721857,5.6456,3734.9,3734.8,3.57111954]
[1753546722387,3.1336,3734.9,3734.8,3.57111954]
[1753546722614,5.6456,3734.9,3734.8,3.57111954]
[1753546726296,5.6446,3734.9,3734.8,3.57111954]
[1753546727404,3.1336,3734.9,3734.8,3.57111954]
[1753546727589,5.6446,3734.9,3734.8,3.57111954]
[1753546735314,5.6446,3734.9,3734.8,2.67751954]
[1753546735533,5.6446,3734.9,3734.8,3.17291954]
[1753546735801,5.6446,3734.9,3734.8,3.64331954]
[1753546736528,5.6446,3734.9,3734.7,2.67758353]
[1753546736700,5.6446,3734.9,3734.8,2.67751954]
[1753546737232,3.0,3734.8,3734.3,2.508]
[1753546737432,2.67506989,3734.7,3734.3,2.508]
[1753546737733,3.0,3734.6,3734.5,2.67773463]
[1753546738103,3.0,3734.6,3734.5,3.64353463]
[1753546739704,2.6416,3734.7,3734.5,3.64353463]
[1753546739705,0.1336,3734.7,3734.6,2.67766293]
[1753546739909,5.6416,3734.7,3734.6,4.46356293]
[1753546741634,5.6406,3734.7,3734.6,4.46356293]
[1753546743500,5.6406,3734.7,3734.6,3.17506293]
[1753546743834,5.6406,3734.7,3734.6,2.67966293]
[1753546744404,5.6406,3734.7,3734.6,3.17506293]
[1753546744731,5.6406,3734.7,3734.6,3.64546293]
[1753546748936,5.6406,3734.7,3734.6,0.002]
[1753546749238,5.6426,3734.7,3734.6,0.002]
[1753546749536,5.6406,3734.7,3734.6,0.002]
[1753546751124,6.1906,3734.7,3734.6,0.002]
[1753546754629,6.1906,3734.7,3734.6,0.459]
[1753546756231,3.1336,3734.7,3734.6,3.13666293]
[1753546756432,3.0,3734.7,3734.6,4.2304849]
[1753546757833,0.1336,3734.9,3734.8,2.67751954]
[1753546758031,0.001,3735.1,3735.0,3.48027617]
[1753546758535,0.001,3735.1,3735.0,4.40307617]
[1753546758732,0.001,3735.1,3735.0,5.37489574]
[1753546760463,0.001,3735.1,3735.0,7.87789574]
[1753546761673,0.001,3735.1,3735.0,7.07499574]